bitfinex-derivatives/quotes_ETHF0:USTF0_20240910
["timestamp","ask_amount","ask_price","bid_price","bid_amount"]
[1725975660871,11.74351631,2340.8,2340.2,0.3896]
[1725975661168,0.42726,2340.4,2340.2,0.3896]
[1725975661362,0.42726,2340.4,2340.2,0.42728]
[1725975661567,10.67554631,2340.8,2339.9,0.3993]
[1725975661568,1.06798,2340.8,2339.9,0.3993]
[1725975661765,0.4272,2340.7,2340.5,0.42723]
[1725975662068,0.42721,2340.7,2340.5,0.42722]
[1725975662560,0.42721,2340.7,2340.4,0.42725]
[1725975662764,0.42724,2340.5,2340.3,0.80866]
[1725975663071,11.84675315,2340.8,2340.4,0.42724]
[1725975663072,0.42723,2340.6,2340.4,0.42724]
[1725975663570,0.42721,2340.7,2340.5,0.42723]
[1725975663769,10.77878315,2340.8,2340.4,0.42723]
[1725975663770,0.42722,2340.6,2340.4,0.42723]
[1725975663975,0.42721,2340.7,2340.5,0.42722]
[1725975664171,10.77878315,2340.8,2340.3,0.3814]
[1725975664172,10.77878315,2340.8,2340.7,0.4272]
[1725975664374,2.18617148,2341.5,2340.7,0.4272]
[1725975664375,1.09308574,2341.6,2340.7,4.358]
[1725975664574,3.10731435,2341.8,2341.3,3.29]
[1725975664872,3.10731435,2341.8,2340.8,0.7607]
[1725975664873,1.09308574,2342.3,2341.7,3.29]
[1725975665178,3.79983436,2342.7,2341.7,3.29]
[1725975665179,0.80148,2342.5,2341.7,3.29]
[1725975665473,2.02622861,2342.8,2341.4,41.0094356]
[1725975665474,1.09308574,2342.8,2342.2,3.29]
[1725975665665,1.06704,2342.8,2341.8,0.7967]
[1725975665863,0.42695,2342.1,2341.8,0.7967]
[1725975666075,0.4269,2342.4,2342.0,0.42696]
[1725975666263,0.42691,2342.3,2341.9,0.42697]
[1725975666472,10.63382042,2342.5,2341.8,0.7967]
[1725975666662,0.42691,2342.3,2341.9,0.42697]
[1725975666861,10.63382042,2342.7,2341.8,0.7967]
[1725975666862,2.73271435,2342.7,2341.8,0.7967]
[1725975667067,11.68935157,2342.5,2341.8,0.7967]
[1725975667272,11.71525731,2342.6,2341.8,0.7967]
[1725975667479,1.09308574,2342.4,2341.4,3.29]
[1725975667676,1.06731,2342.2,2341.5,0.42704]
[1725975667974,10.73482944,2342.1,2341.4,3.29]
[1725975668279,0.42699,2341.9,2341.5,0.42704]
[1725975668668,1.06736,2342.1,2341.3,0.754]
[1725975668979,0.42708,2341.4,2341.0,0.42713]
[1725975669476,1.06763,2341.5,2340.9,0.754]
[1725975669668,0.42712,2341.1,2340.7,0.42719]
[1725975669876,1.06763,2341.5,2340.6,0.42721]
[1725975669877,0.42715,2341.0,2340.6,0.42721]
[1725975670172,0.42715,2341.0,2340.3,1.029927]
[1725975670173,0.4271,2341.3,2340.8,0.42717]
[1725975670371,11.08863716,2341.4,2341.0,0.42713]
[1725975670871,10.66155716,2341.4,2340.8,0.3916]
[1725975671076,0.427,2341.8,2340.9,3.6936]
[1725975671377,0.42693,2342.2,2341.7,0.427]
[1725975671582,0.42694,2342.1,2341.7,0.427]
[1725975671764,0.42694,2342.1,2341.6,3.29]
[1725975671765,1.09308574,2342.4,2341.6,3.29]
[1725975671969,10.92336483,2342.2,2341.9,0.42697]
[1725975672270,1.09308574,2342.5,2341.7,0.78]
[1725975672271,10.92336483,2342.4,2341.7,0.78]
[1725975672468,0.42692,2342.3,2341.9,0.42698]
[1725975672777,10.92336483,2342.2,2341.7,0.78]
[1725975672969,1.09308574,2342.5,2342.0,0.42696]
[1725975673179,10.72614756,2342.4,2341.7,0.78]
[1725975673369,0.42691,2342.3,2342.0,0.42695]
[1725975673569,0.376,2342.6,2341.7,0.78]
[1725975673570,0.42693,2342.2,2341.7,0.78]
[1725975673770,0.42693,2342.2,2340.8,1.33008675]
[1725975673771,3.29,2342.0,2340.8,1.33008675]
[1725975673976,0.42704,2341.6,2341.3,0.42708]
[1725975674177,11.15352355,2341.9,2341.2,0.42709]
[1725975674473,11.15352355,2341.9,2341.3,0.42707]
[1725975674676,0.42701,2341.8,2341.4,0.42706]
[1725975674873,0.81479,2341.9,2341.5,0.42704]
[1725975675073,0.81479,2341.9,2341.4,0.42706]
[1725975675074,0.427,2341.8,2341.4,0.42706]
[1725975675279,0.42703,2341.7,2341.0,0.3884]
[1725975675476,4.173,2342.1,2341.3,1.06772]
[1725975675774,0.42694,2342.1,2341.7,0.427]
[1725975675975,0.42694,2342.1,2341.2,4.35773]
[1725975675976,0.3732,2342.3,2341.2,4.35773]
[1725975676171,0.42695,2342.1,2341.7,0.427]
[1725975676472,0.42695,2342.1,2341.8,0.42699]
[1725975676677,11.35024601,2342.2,2341.8,0.42699]
[1725975676873,0.42694,2342.1,2341.3,1.06768]
[1725975677097,0.42694,2342.1,2341.4,0.378]
[1725975677383,0.42697,2342.0,2341.6,0.42703]
[1725975677677,0.42702,2341.7,2341.1,4.082]
[1725975677880,1.06736,2342.1,2341.1,4.082]
[1725975678081,0.427,2341.8,2341.4,0.42706]
[1725975678574,1.06736,2342.1,2341.4,0.42706]
[1725975678769,1.06732,2342.2,2341.2,0.42709]
[1725975678975,0.42706,2341.5,2341.0,41.1884]
[1725975679173,0.4271,2341.3,2341.0,0.3884]
[1725975679380,1.06763,2341.5,2341.0,0.3884]
[1725975679588,1.06763,2341.5,2340.9,0.3926]
[1725975679780,0.42708,2341.4,2340.9,0.3926]
[1725975680076,0.42705,2341.5,2341.1,0.42711]
[1725975680278,0.3679,2341.6,2341.0,0.42713]
[1725975680470,10.79834524,2341.5,2340.9,0.81975]
[1725975680777,10.79834524,2341.5,2341.0,0.42714]
[1725975680983,10.79834524,2341.5,2340.9,0.81975]
[1725975681184,0.4271,2341.3,2341.0,0.42714]
[1725975681683,0.4271,2341.3,2340.7,0.3753]
[1725975681684,10.79834524,2341.5,2340.7,0.3753]
[1725975681869,3.6557,2341.4,2340.7,0.3753]
[1725975682071,0.42711,2341.2,2340.8,0.42717]
[1725975682279,10.69288646,2341.3,2340.7,0.80248]
[1725975682582,0.42712,2341.2,2340.8,0.42718]
[1725975682774,0.42714,2341.1,2340.7,0.80249]
[1725975682977,10.69288646,2341.3,2340.7,0.3753]
[1725975683278,0.42711,2341.2,2340.8,0.42717]
[1725975683476,0.42715,2341.0,2340.4,0.3946]
[1725975683671,11.76065646,2341.3,2340.6,0.42721]
[1725975683672,0.42713,2341.1,2340.6,0.42721]
[1725975683879,0.42715,2341.0,2340.6,0.42721]
[1725975684083,0.42714,2341.0,2340.6,0.4272]
[1725975684380,11.76065646,2341.3,2340.5,0.3795]
[1725975684583,0.42715,2341.0,2340.5,0.3795]
[1725975684881,0.42715,2341.0,2340.6,0.4272]
[1725975685584,0.42715,2341.0,2340.6,0.42721]
[1725975685775,0.42715,2341.0,2340.7,0.4272]
[1725975686281,11.76065646,2341.3,2341.0,0.42714]
[1725975686282,0.42709,2341.3,2341.0,0.42714]
[1725975686877,1.4355,2341.6,2340.5,7.7515]
[1725975686878,1.06764,2341.5,2340.5,7.7515]
[1725975687083,0.42717,2340.9,2340.6,0.4272]
[1725975687383,0.42714,2341.1,2340.5,0.3795]
[1725975687680,0.42714,2341.1,2340.8,0.42717]
[1725975687883,0.42715,2341.0,2340.8,0.42717]
[1725975688078,0.42715,2341.0,2340.5,0.3795]
[1725975688079,0.42715,2341.0,2340.7,0.42719]
[1725975688279,1.06776,2341.3,2340.8,0.42718]
[1725975688479,0.42713,2341.1,2340.8,0.42718]
[1725975688681,0.42711,2341.2,2340.5,1.44758]
[1725975688885,0.42712,2341.1,2340.9,0.42715]
[1725975689178,0.42712,2341.2,2340.6,1.06804]
[1725975689383,0.42711,2341.2,2341.0,0.42714]
[1725975689782,0.42711,2341.2,2340.9,0.42715]
[1725975689983,0.42711,2341.2,2340.6,1.06804]
[1725975690687,0.4271,2341.3,2341.0,0.42713]
[1725975690889,0.4271,2341.3,2341.1,0.42712]
[1725975691187,0.42709,2341.3,2341.1,0.42712]
[1725975691378,0.42711,2341.2,2341.0,0.42713]
[1725975691885,1.06768,2341.4,2340.6,4.082]
[1725975692182,1.06766,2341.5,2340.6,1.06804]
[1725975692488,1.46098574,2341.6,2340.6,1.06804]
[1725975692489,0.42712,2341.2,2341.0,0.42714]
[1725975692787,1.46098574,2341.6,2340.6,1.06804]
[1725975692788,11.87706894,2341.5,2341.1,0.42711]
[1725975692986,0.42707,2341.4,2341.2,0.4271]
[1725975693377,0.3679,2341.6,2340.9,0.4002]
[1725975693378,0.42706,2341.5,2340.9,0.4002]
[1725975693583,0.42707,2341.4,2341.2,0.42709]
[1725975693790,0.3679,2341.6,2341.0,0.3805]
[1725975693791,11.23648894,2341.5,2341.3,0.42709]
[1725975693985,0.42708,2341.4,2341.2,0.4271]
[1725975694481,0.42706,2341.5,2341.3,0.42708]
[1725975694677,0.42708,2341.4,2341.2,0.4271]
[1725975694889,0.42708,2341.4,2341.1,0.3831]
[1725975694890,11.11069362,2341.6,2341.4,0.42707]
[1725975695092,11.11069362,2341.6,2341.1,0.3831]
[1725975695093,0.42706,2341.5,2341.3,0.42708]
[1725975695283,0.42707,2341.4,2341.2,0.42709]
[1725975695580,0.42707,2341.4,2341.1,0.3831]
[1725975695785,0.42702,2341.7,2341.1,4.6543]
[1725975695989,0.42705,2341.6,2341.4,0.42706]
[1725975696377,1.06751,2341.8,2341.5,0.42705]
[1725975696584,2.54201574,2342.0,2341.2,1.06776]
[1725975696783,2.54201574,2342.0,2341.1,1.4509]
[1725975696784,0.42701,2341.8,2341.3,1.06772]
[1725975696983,0.3815,2342.0,2341.8,0.42698]
[1725975697184,0.80847,2342.0,2341.8,0.42699]
[1725975697384,0.80847,2342.0,2341.7,0.427]
[1725975697385,0.42698,2341.9,2341.7,0.427]
[1725975697582,0.80847,2342.0,2341.7,0.427]
[1725975697889,0.80847,2342.0,2341.8,0.42699]
[1725975698079,0.80847,2342.0,2341.4,3.506284]
[1725975698080,0.3815,2342.0,2341.4,3.506284]
[1725975698279,0.3815,2342.0,2341.8,0.42699]
[1725975698280,0.80846,2342.0,2341.8,0.42699]
[1725975698481,0.3815,2342.0,2341.4,4.573934]
[1725975698681,1.06734,2342.2,2341.7,0.427]
[1725975698890,10.92103419,2341.9,2341.1,0.3831]
[1725975699085,4.38308574,2342.0,2341.1,0.3831]
[1725975699086,2.16051574,2342.0,2341.1,4.7409]
[1725975699281,2.16051574,2342.0,2341.5,0.42704]
[1725975699484,0.427,2341.8,2341.6,0.42703]
[1725975699684,0.42697,2342.0,2341.8,0.427]
[1725975700190,0.42697,2342.0,2341.7,0.427]
[1725975700487,0.42697,2342.0,2341.8,0.42699]
[1725975701285,0.42697,2342.0,2341.7,0.427]
[1725975701487,0.42697,2342.0,2341.8,0.42698]
[1725975702289,0.42701,2341.8,2341.5,0.82554]
[1725975702482,1.06741,2342.0,2341.2,40.8]
[1725975702483,10.62880268,2341.9,2341.2,0.7785]
[1725975702685,11.72188842,2341.9,2341.5,0.42704]
[1725975702892,0.42702,2341.7,2341.5,0.42704]
[1725975704394,2.16056574,2341.9,2341.2,0.7785]
[1725975704592,0.42704,2341.6,2341.3,0.42707]
[1725975704896,1.09308574,2342.1,2341.7,0.427]
[1725975705093,1.09308574,2342.1,2341.8,0.7989]
[1725975705094,0.42698,2341.9,2341.8,0.7989]
[1725975705299,2.16044574,2342.1,2341.3,0.21418591]
[1725975705487,2.16044574,2342.1,2341.0,2.06067716]
[1725975705488,2.16053574,2341.9,2341.2,0.7986]
[1725975705790,1.09308574,2341.9,2341.2,0.7986]
[1725975705993,0.42704,2341.6,2341.3,0.42708]
[1725975706192,1.09308574,2341.7,2341.2,1.22569]
[1725975706493,0.42704,2341.6,2341.2,1.22569]
[1725975706798,1.09308574,2341.7,2341.4,0.42707]
[1725975706984,1.52008574,2341.8,2341.2,0.7986]
[1725975707191,1.52008574,2341.8,2341.5,0.42704]
[1725975707192,1.09308574,2341.8,2341.5,0.42704]
[1725975707387,2.06660861,2341.9,2341.6,0.42703]
[1725975707388,1.52006574,2341.9,2341.6,0.42703]
[1725975707587,1.52006574,2341.9,2341.2,0.7986]
[1725975707588,1.09308574,2341.9,2341.2,0.7986]
[1725975707898,1.52003574,2342.1,2341.8,0.427]
[1725975708098,1.09308574,2342.0,2341.8,0.42698]
[1725975708289,1.52003574,2342.1,2341.4,0.2089306]
[1725975708790,1.09308574,2342.0,2341.8,0.42699]
[1725975708995,1.52003574,2342.1,2341.8,0.42699]
[1725975709694,1.52003574,2342.1,2341.2,0.7986]
[1725975709695,1.09308574,2342.1,2341.2,0.7986]
[1725975710009,1.09308574,2342.0,2341.8,0.42699]
[1725975710198,1.52003574,2342.1,2341.8,0.42699]
[1725975710498,1.09308574,2342.1,2341.9,0.42698]
[1725975710685,1.09308574,2342.1,2341.4,0.20974928]
[1725975710686,1.09308574,2342.0,2341.4,0.20974928]
[1725975710887,1.52001574,2342.2,2341.9,0.42697]
[1725975711300,0.42694,2342.1,2341.9,0.42697]
[1725975711494,1.09308574,2342.2,2341.9,0.42697]
[1725975711688,1.52002574,2342.1,2341.8,0.42699]
[1725975712198,1.09308574,2342.1,2341.9,0.42697]
[1725975712495,1.09308574,2342.3,2342.2,0.42692]
[1725975712891,1.09308574,2342.4,2342.3,0.4269]
[1725975713089,1.51993574,2342.6,2342.3,0.4269]
[1725975713288,1.51993574,2342.6,2342.0,1.1501]
[1725975713289,1.09308574,2342.6,2342.0,1.1501]
[1725975713489,1.09308574,2342.7,2342.5,0.42687]
[1725975714090,1.46608574,2342.8,2342.0,1.1501]
[1725975714293,1.89290574,2342.8,2342.5,0.42686]
[1725975714496,1.46608574,2342.8,2342.5,0.42686]
[1725975714686,1.89290574,2342.8,2342.4,0.42688]
[1725975714892,1.89290574,2342.8,2342.5,0.42687]
[1725975715099,0.373,2342.8,2342.0,1.1501]
[1725975715297,1.89290574,2342.8,2342.4,0.42688]
[1725975715600,1.89290574,2342.8,2342.5,0.42687]
[1725975715798,1.46608574,2342.8,2342.6,0.42684]
[1725975716001,1.46608574,2342.8,2342.0,1.1501]
[1725975716201,1.89290574,2342.8,2342.5,0.42686]
[1725975716398,0.79982,2342.8,2342.5,0.42686]
[1725975716594,0.79982,2342.8,2342.0,1.1501]
[1725975716791,1.09308574,2342.9,2342.7,0.42683]
[1725975716996,1.09308574,2343.0,2342.9,0.4268]
[1725975717295,2.99930148,2343.3,2343.2,0.42674]
[1725975717296,1.09308574,2343.3,2343.2,0.42674]
[1725975717591,1.91819574,2343.9,2343.2,9.29]
[1725975717796,1.91819574,2343.9,2343.2,3.29]
[1725975717797,0.3985,2343.9,2343.2,3.29]
[1725975717997,0.82512,2343.9,2343.2,3.29]
[1725975718197,0.3985,2343.9,2343.2,3.49990279]
[1725975718403,0.42664,2343.8,2343.4,0.4267]
[1725975718702,0.3985,2343.9,2343.2,3.49990279]
[1725975718999,0.82512,2343.9,2343.5,0.42667]
[1725975719211,0.82511,2343.9,2343.6,0.42666]
[1725975719395,0.4266,2344.0,2343.6,0.42666]
[1725975719597,0.42662,2343.9,2343.5,0.42667]
[1725975719798,11.03076829,2344.2,2343.2,3.29]
[1725975720093,11.03076829,2344.2,2343.6,0.42666]
[1725975720094,0.42661,2344.0,2343.6,0.42666]
[1725975720294,0.42661,2343.9,2343.5,0.42667]
[1725975720494,0.42661,2344.0,2343.5,0.42667]
[1725975720699,11.45733829,2344.2,2343.7,0.42665]
[1725975720893,0.3985,2344.2,2343.6,0.42666]
[1725975721093,0.42658,2344.1,2343.6,0.42666]
[1725975721300,0.3985,2344.2,2343.2,3.29]
[1725975721494,0.4266,2344.0,2343.2,3.29]
[1725975721705,0.3985,2344.2,2343.5,0.42667]
[1725975722005,0.4266,2344.0,2343.5,0.42667]
[1725975722194,0.3985,2344.2,2343.2,3.29]
[1725975722393,0.4266,2344.0,2343.5,0.42668]
[1725975722801,0.42659,2344.1,2343.5,0.42667]
[1725975722993,0.42653,2344.4,2343.8,3.29]
[1725975723194,0.42658,2344.1,2343.6,0.42666]
[1725975723399,0.3649,2344.5,2343.6,0.42666]
[1725975723605,0.42664,2343.8,2343.2,0.42672]
[1725975723909,0.42664,2343.8,2343.3,0.42672]
[1725975724095,0.42667,2343.6,2343.1,0.64047503]
[1725975724295,1.06654,2343.9,2343.1,0.42674]
[1725975724510,0.3688,2343.9,2343.1,0.20825151]
[1725975724693,0.42663,2343.8,2343.2,0.42673]
[1725975724894,0.42673,2343.3,2342.4,3.6542]
[1725975725194,0.42673,2343.3,2342.8,0.4268]
[1725975725397,0.42671,2343.4,2342.9,0.42679]
[1725975725604,0.42672,2343.3,2342.9,0.42679]
[1725975725906,0.42671,2343.4,2342.5,41.2036]
[1725975726096,1.43538,2343.9,2342.7,4.35708]
[1725975726291,1.43538,2343.9,2343.3,0.42671]
[1725975726292,0.42665,2343.8,2343.3,0.42671]
[1725975726506,0.3688,2343.9,2343.2,0.42673]
[1725975726704,0.42669,2343.5,2343.1,1.31765664]
[1725975726995,1.43538,2343.9,2343.1,1.31765664]
[1725975726996,0.3688,2343.9,2343.1,1.31765664]
[1725975727395,0.79542,2343.9,2343.4,0.42669]
[1725975727604,0.79542,2343.9,2343.1,1.31765664]
[1725975727605,0.3688,2343.9,2343.1,1.31765664]
[1725975727907,0.42663,2343.8,2343.1,1.31765664]
[1725975728297,0.42663,2343.8,2343.4,0.4267]
[1725975728910,0.3688,2343.9,2343.3,0.42671]
[1725975729206,0.3688,2343.9,2343.1,1.31765664]
[1725975729597,0.42662,2343.9,2343.1,1.31765664]
[1725975729996,1.06645,2344.1,2343.3,0.42671]
[1725975730298,0.42662,2343.9,2343.4,0.42669]
[1725975730508,0.42662,2343.9,2343.5,0.42668]
[1725975730704,0.4266,2344.0,2343.6,0.42666]
[1725975731002,0.385,2344.3,2343.2,3.29]
[1725975731204,1.45138,2344.3,2343.1,1.31765664]
[1725975731407,0.42666,2343.7,2343.3,0.42672]
[1725975731706,0.42664,2343.8,2343.3,0.42672]
[1725975731902,4.35641,2344.2,2343.3,0.42671]
[1725975731903,0.42665,2343.7,2343.3,0.42671]
[1725975732113,0.42664,2343.8,2343.1,1.1071]
[1725975732493,0.42662,2343.9,2343.5,0.42668]
[1725975732697,0.42664,2343.8,2343.4,0.42669]
[1725975733099,0.42665,2343.8,2343.4,0.42669]
[1725975733600,0.42664,2343.8,2343.4,0.42669]
[1725975734004,0.42664,2343.8,2343.5,0.42668]
[1725975734306,1.0664,2344.2,2343.6,0.42666]
[1725975734503,0.385,2344.3,2343.1,1.31686244]
[1725975734504,1.06645,2344.1,2343.1,1.1071]
[1725975734802,1.45136,2344.3,2343.3,0.42671]
[1725975734803,0.42666,2343.7,2343.3,0.42671]
[1725975735113,0.42668,2343.6,2343.1,1.1071]
[1725975735303,0.42666,2343.7,2343.4,0.4267]
[1725975735505,0.42666,2343.7,2343.3,0.42671]
[1725975735805,0.42666,2343.7,2343.4,0.4267]
[1725975736209,1.45139,2344.3,2343.3,0.42672]
[1725975736210,4.35641,2344.2,2343.3,0.42672]
[1725975736414,3.29,2343.9,2342.6,0.214]
[1725975736707,3.29,2343.9,2342.7,0.81742]
[1725975736708,0.42678,2343.0,2342.7,0.81742]
[1725975736914,0.42678,2343.0,2342.7,0.42682]
[1725975737120,0.42678,2343.0,2341.6,0.214]
[1725975737121,15.91887875,2342.9,2341.6,0.214]
[1725975737320,1.06713,2342.6,2341.7,0.4003]
[1725975737618,0.42689,2342.4,2342.0,0.42695]
[1725975737909,0.4269,2342.4,2342.0,0.42696]
[1725975738113,0.42686,2342.6,2342.2,0.42692]
[1725975738406,0.42686,2342.6,2341.8,2.66]
[1725975738407,0.42692,2342.2,2341.8,0.42699]
[1725975738605,0.42692,2342.2,2341.6,3.0319]
[1725975738812,0.42694,2342.1,2341.7,0.427]
[1725975739107,0.42698,2341.9,2341.6,0.3719]
[1725975739314,0.427,2341.8,2341.5,0.3901]
[1725975739500,2.66,2341.9,2341.2,3.08709]
[1725975739699,2.66,2341.7,2341.1,0.762]
[1725975740009,0.42708,2341.4,2340.8,3.08716]
[1725975740207,0.42709,2341.3,2340.7,0.42719]
[1725975740413,0.42709,2341.3,2340.5,0.3719]
[1725975740414,0.42709,2341.3,2340.8,40.8]
[1725975740607,3.28,2341.8,2340.8,40.8]
[1725975740810,0.42705,2341.6,2340.9,0.42715]
[1725975741016,0.42705,2341.5,2340.9,0.42715]
[1725975741199,3.28,2341.8,2341.1,0.42711]
[1725975741200,0.42701,2341.8,2341.1,0.42711]
[1725975741407,0.7746,2342.2,2341.2,0.79899]
[1725975741710,0.42699,2341.9,2341.2,0.79899]
[1725975741915,10.83431809,2342.1,2341.2,0.3719]
[1725975742306,0.42699,2341.9,2341.2,0.3719]
[1725975742523,0.42699,2341.9,2341.2,0.799]
[1725975742711,0.7746,2342.2,2341.2,3.6519]
[1725975742712,0.42696,2342.0,2341.2,3.6519]
[1725975742919,0.3769,2342.2,2341.2,0.79899]
[1725975743114,0.3769,2342.2,2341.2,0.3719]
[1725975743305,0.42699,2341.9,2341.2,0.3719]
[1725975743511,0.42699,2341.9,2341.3,0.42708]
[1725975743708,0.3769,2342.2,2341.2,0.3719]
[1725975744015,0.42694,2342.1,2341.2,3.6519]
[1725975744222,0.3769,2342.2,2341.2,3.6519]
[1725975744921,0.42687,2342.5,2341.5,3.28]
[1725975745220,0.80496,2342.6,2342.0,0.42695]
[1725975745421,1.09308574,2342.7,2342.1,0.80664]
[1725975745617,1.09308574,2342.7,2342.2,0.3911]
[1725975745824,1.09308574,2342.7,2342.3,40.8]
[1725975746013,1.51992574,2342.7,2342.3,40.8]
[1725975746213,0.42686,2342.6,2342.2,0.3911]
[1725975746414,1.09308574,2342.7,2342.2,0.3911]
[1725975746615,0.42684,2342.7,2342.2,41.61801]
[1725975747514,0.42682,2342.8,2342.3,0.4269]
[1725975747819,0.42685,2342.7,2342.2,41.61802]
[1725975748016,0.42686,2342.6,2342.2,41.1911]
[1725975748319,10.62697984,2342.9,2342.2,41.1911]
[1725975748511,0.42684,2342.7,2342.2,41.61801]
[1725975748912,0.42686,2342.6,2342.2,41.1911]
[1725975749114,0.42685,2342.7,2342.2,41.61801]
[1725975749315,0.42682,2342.8,2342.3,0.42689]
[1725975749524,0.42682,2342.8,2342.3,0.4269]
[1725975749923,0.42682,2342.8,2342.2,41.1911]
[1725975749924,10.62697984,2342.9,2342.2,41.1911]
[1725975750423,0.42686,2342.6,2342.2,0.81802]
[1725975750609,0.42687,2342.5,2342.2,0.3911]
[1725975750816,10.62697984,2342.9,2342.2,0.81802]
[1725975751221,0.42686,2342.6,2342.3,0.4269]
[1725975751817,10.62697984,2342.9,2342.2,0.3911]
[1725975752024,1.06704,2342.8,2342.2,0.3911]
[1725975752318,0.42688,2342.5,2342.2,0.3911]
[1725975752515,10.58635244,2342.7,2342.2,0.3911]
[1725975752910,0.42688,2342.5,2342.2,0.81802]
[1725975753122,10.58635244,2342.7,2342.2,0.3911]
[1725975753323,0.42692,2342.2,2341.9,0.42697]
[1725975753628,0.42698,2341.9,2341.6,0.42702]
[1725975753816,0.42702,2341.7,2341.5,0.7711]
[1725975754012,0.42703,2341.6,2341.2,0.4271]
[1725975754212,0.42707,2341.5,2341.1,0.82622]
[1725975754424,0.42708,2341.4,2341.1,0.3991]
[1725975754631,1.06755,2341.7,2341.1,0.3991]
[1725975754826,0.42709,2341.3,2341.1,0.3991]
[1725975755020,0.4271,2341.3,2341.1,0.3991]
[1725975755321,3.6483,2341.8,2341.0,0.3785]
[1725975755529,0.42703,2341.7,2341.3,0.42708]
[1725975755727,0.42703,2341.6,2341.2,0.4271]
[1725975755927,0.42705,2341.5,2341.1,0.42712]
[1725975756124,0.3683,2341.8,2341.0,0.3785]
[1725975756328,0.3683,2341.8,2341.2,0.42709]
[1725975756329,0.42704,2341.6,2341.2,0.42709]
[1725975756728,0.3683,2341.8,2341.3,0.42707]
[1725975756729,0.42702,2341.7,2341.3,0.42707]
[1725975757824,0.79531,2341.8,2341.4,0.42707]
[1725975758034,0.3683,2341.8,2341.0,0.3785]
[1725975758220,0.42703,2341.6,2341.2,0.42709]
[1725975758831,0.42703,2341.6,2341.2,0.82659]
[1725975759028,0.3683,2341.8,2341.2,0.82659]
[1725975759029,0.3683,2341.8,2341.2,0.3995]
[1725975759226,0.3683,2341.8,2341.2,0.82659]
[1725975759227,0.42704,2341.6,2341.2,0.82659]
[1725975759418,0.42704,2341.6,2341.3,0.42708]
[1725975760026,0.427,2341.8,2341.4,0.42706]
[1725975760228,0.42702,2341.7,2341.4,0.42706]
[1725975760424,3.28,2342.1,2341.5,0.42704]
[1725975760619,3.28,2342.1,2341.3,41.22708]
[1725975760620,0.42704,2341.6,2341.3,41.22708]
[1725975760825,0.42704,2341.6,2341.3,40.8]
[1725975761020,1.06745,2341.9,2341.2,0.8266]
[1725975761226,0.42706,2341.5,2341.2,0.8266]
[1725975761530,0.42703,2341.7,2341.3,0.42708]
[1725975761725,0.42703,2341.6,2341.3,0.42707]
[1725975762424,0.42703,2341.6,2341.2,0.82659]
[1725975763234,0.42703,2341.6,2341.3,0.42709]
[1725975763432,0.42702,2341.7,2341.4,0.42706]
[1725975763833,0.427,2341.8,2341.5,0.42705]
[1725975764039,0.427,2341.8,2341.6,0.3882]
[1725975764234,0.42697,2342.0,2341.7,0.42701]
[1725975764429,0.42693,2342.2,2341.9,0.42697]
[1725975764835,0.42695,2342.1,2341.8,0.42699]
[1725975765342,10.72070621,2342.4,2341.6,0.3882]
[1725975765546,0.42695,2342.1,2341.8,0.42698]
[1725975765844,0.42693,2342.2,2341.9,0.42697]
[1725975766030,1.06722,2342.4,2341.8,0.42698]
[1725975766229,0.42694,2342.2,2341.9,0.79948]
[1725975766642,0.42694,2342.2,2341.9,0.79947]
[1725975766831,0.42694,2342.2,2341.9,0.3725]
[1725975767032,0.42694,2342.1,2341.9,0.3725]
[1725975767228,1.06727,2342.3,2341.9,0.3725]
[1725975767740,0.42696,2342.0,2341.9,0.3725]
[1725975767940,0.42695,2342.1,2341.9,0.79948]
[1725975768334,0.42696,2342.0,2341.9,0.3725]
[1725975768636,1.06727,2342.3,2341.6,0.81521]
[1725975768827,0.42701,2341.7,2341.6,0.7607]
[1725975769233,1.06745,2341.9,2341.4,0.42706]
[1725975769431,1.06745,2341.9,2341.1,45.2605]
[1725975769432,0.42705,2341.5,2341.2,0.7755]
[1725975769650,1.0675,2341.8,2341.4,0.42706]
[1725975769651,0.42704,2341.6,2341.4,0.42706]
[1725975770241,0.42706,2341.5,2341.2,0.7755]
[1725975770438,0.42705,2341.5,2341.3,0.42708]
[1725975770739,0.42704,2341.6,2341.2,0.7755]
[1725975770938,0.42705,2341.5,2341.3,0.42708]
[1725975771442,1.06753,2341.8,2341.2,0.7755]
[1725975771641,1.06753,2341.8,2341.3,0.42707]
[1725975772142,0.42705,2341.5,2341.3,0.42707]
[1725975772344,1.06754,2341.7,2341.2,1.2026]
[1725975772637,0.42711,2341.2,2340.7,4.082]
[1725975772827,0.42708,2341.4,2341.2,0.4271]
[1725975773031,0.42705,2341.6,2340.9,1.06791]
[1725975773236,0.42706,2341.5,2341.3,0.42709]
[1725975773544,0.42708,2341.4,2340.9,0.369]
[1725975773738,0.42708,2341.4,2341.2,0.4271]
[1725975774037,1.06762,2341.6,2341.1,0.42711]
[1725975774038,1.06763,2341.5,2341.1,0.42711]
[1725975774239,1.06762,2341.6,2340.8,0.42717]
[1725975774240,0.42716,2341.0,2340.8,0.42717]
[1725975774438,1.06779,2341.2,2340.7,0.3718]
[1725975774639,1.06779,2341.2,2340.7,0.79898]
[1725975774640,0.42716,2340.9,2340.7,0.79898]
[1725975774940,0.42713,2341.1,2340.9,0.42715]
[1725975775136,0.42715,2341.0,2340.8,0.42717]
[1725975775532,0.42716,2341.0,2340.8,0.42717]
[1725975775736,0.42716,2340.9,2340.8,0.42717]
[1725975776029,0.42716,2340.9,2340.7,0.79899]
[1725975776030,0.42718,2340.9,2340.7,0.79899]